bitfinex/quotes_SOLUSD_20220128
["timestamp","ask_amount","ask_price","bid_price","bid_amount"]
[1643334175378,1.5045063,89.763,89.652,112.2]
[1643334175579,1.5045063,89.767,89.662,6.0]
[1643334175875,1.5045063,89.767,89.672,39.712998]
[1643334176074,1.5045063,89.768,89.672,39.712998]
[1643334176277,1.5045063,89.771,89.673,0.25]
[1643334176478,6.0,89.758,89.673,123.83935365]
[1643334176676,16.7238,89.8,89.673,123.83935365]
[1643334176677,1.5045063,89.769,89.674,11.38935365]
[1643334176877,1.5045063,89.773,89.675,112.45]
[1643334177081,1.5045063,89.774,89.675,112.45]
[1643334177277,0.25,89.773,89.675,133.61581886]
[1643334177480,0.25,89.773,89.676,2.11054122]
[1643334177680,1.5045063,89.771,89.691,41.19714896]
[1643334177879,1.7545063,89.77,89.691,41.19714896]
[1643334178083,1.5045063,89.77,89.692,0.25]
[1643334178379,1.5045063,89.774,89.692,0.25]
[1643334178984,16.7264,89.79,89.692,0.25]
[1643334178985,1.5045063,89.773,89.692,0.25]
[1643334179184,1.5045063,89.772,89.692,0.25]
[1643334179585,1.5045063,89.774,89.692,0.25]
[1643334179786,1.5045063,89.775,89.692,0.25]
[1643334179985,1.5045063,89.773,89.693,2.10571096]
[1643334180386,6.0,89.78,89.694,0.25]
[1643334180387,1.5045063,89.776,89.694,0.25]
[1643334180787,6.0,89.78,89.695,2.10571096]
[1643334181190,7.5045063,89.78,89.696,0.25]
[1643334181389,6.0,89.772,89.7,13.28]
[1643334181589,1.5045063,89.778,89.7,13.28]
[1643334181791,1.5045063,89.779,89.701,0.25]
[1643334181993,0.25,89.777,89.701,2.10571096]
[1643334182191,1.5045063,89.772,89.7,13.28]
[1643334182393,1.5045063,89.769,89.701,0.25]
[1643334182794,1.5045063,89.779,89.701,0.25]
[1643334182992,1.5045063,89.779,89.702,2.10571096]
[1643334183195,28.05201905,89.842,89.702,2.10571096]
[1643334183196,1.5045063,89.784,89.702,2.10571096]
[1643334183394,1.5045063,89.785,89.703,0.25]
[1643334183595,1.5045063,89.792,89.703,11.63935365]
[1643334183795,1.5045063,89.793,89.704,21.1609886]
[1643334184195,1.5045063,89.793,89.705,21.4109886]
[1643334184397,1.5045063,89.793,89.706,0.25]
[1643334184694,1.5045063,89.794,89.721,39.6366797]
[1643334184897,6.09634397,89.848,89.721,39.6366797]
[1643334184898,1.5045063,89.8,89.722,0.25]
[1643334185094,1.5045063,89.802,89.722,131.50527764]
[1643334185294,1.5045063,89.805,89.722,133.6109886]
[1643334185493,73.462,89.849,89.722,133.6109886]
[1643334185494,1.5045063,89.807,89.724,112.2]
[1643334185893,1.5045063,89.81,89.725,21.4109886]
[1643334186293,1.5045063,89.815,89.726,21.1609886]
[1643334186497,1.5045063,89.815,89.74,13.28]
[1643334186697,1.5045063,89.816,89.741,112.2]
[1643334186894,1.5045063,89.816,89.741,114.55571096]
[1643334187094,1.5045063,89.814,89.741,114.55571096]
[1643334187295,1.5045063,89.814,89.742,2.10571096]
[1643334187694,1.5045063,89.814,89.743,0.25]
[1643334187895,1.5045063,89.813,89.743,0.25]
[1643334188094,1.5045063,89.813,89.744,2.10571096]
[1643334188296,1.5045063,89.816,89.745,0.25]
[1643334188496,1.5045063,89.819,89.75,13.28]
[1643334188694,1.5045063,89.82,89.75,13.28]
[1643334188896,1.5045063,89.819,89.751,19.30527764]
[1643334189094,1.5045063,89.82,89.752,48.70047397]
[1643334189294,1.5045063,89.82,89.753,0.25]
[1643334189494,1.5045063,89.827,89.753,112.45]
[1643334189795,0.25,89.826,89.753,112.45]
[1643334189995,0.25,89.826,89.754,2.10571096]
[1643334190396,0.25,89.826,89.755,0.25]
[1643334191094,1.5045063,89.829,89.755,0.25]
[1643334191296,0.25,89.828,89.752,48.70047397]
[1643334191497,2.98308314,89.818,89.752,48.70047397]
[1643334191896,6.0,89.808,89.752,48.70047397]
[1643334192296,0.25,89.807,89.752,48.70047397]
[1643334192697,6.0,89.808,89.752,48.70047397]
[1643334192897,6.0,89.808,89.753,2.35571083]
[1643334193097,6.0,89.816,89.753,2.35571083]
[1643334193302,6.0,89.816,89.754,2.10571083]
[1643334193498,6.0,89.824,89.754,2.10571083]
[1643334193698,6.0,89.824,89.755,0.25]
[1643334193898,6.0,89.825,89.755,0.25]
[1643334194099,6.0,89.829,89.756,2.10569746]
[1643334194298,6.0,89.829,89.757,0.25]
[1643334194499,1.5045063,89.844,89.77,13.28]
[1643334194714,6.0,89.832,89.771,38.09918396]
[1643334194901,1.5045063,89.859,89.78,6.0]
[1643334195200,1.5045063,89.861,89.79,13.28]
[1643334195401,0.25,89.86,89.791,0.25]
[1643334195906,1.5045063,89.869,89.791,0.25]
[1643334196100,1.5045063,89.874,89.792,2.10569746]
[1643334196302,1.5045063,89.878,89.793,0.25]
[1643334196701,1.5045063,89.877,89.794,2.10569746]
[1643334196902,1.5045063,89.886,89.795,0.25]
[1643334197104,1.5045063,89.887,89.801,112.2]
[1643334197307,1.5045063,89.887,89.802,0.25]
[1643334197502,1.5045063,89.89,89.802,2.35569746]
[1643334197708,1.5045063,89.891,89.802,2.35569746]
[1643334197904,1.5045063,89.895,89.803,2.10569746]
[1643334198105,1.5045063,89.901,89.803,2.10569746]
[1643334198305,1.5045063,89.905,89.804,0.25]
[1643334198507,6.0,89.895,89.804,0.25]
[1643334198705,6.0,89.895,89.805,2.10569746]
[1643334198905,27.21383424,89.894,89.82,13.28]
[1643334199107,27.21383424,89.894,89.821,36.94122424]
[1643334199307,0.25,89.893,89.821,39.0469217]
[1643334199708,0.25,89.893,89.822,2.10569746]
[1643334200109,0.25,89.893,89.823,0.25]
[1643334200507,0.25,89.893,89.822,0.25]
[1643334201508,27.21383424,89.894,89.822,0.25]
[1643334202309,27.21383424,89.894,89.821,36.94122424]
[1643334202812,6.0,89.884,89.8,13.28]
[1643334203215,0.25,89.883,89.8,13.28]
[1643334203614,1.5045063,89.878,89.78,13.28]
[1643334203811,1.5045063,89.878,89.711,46.4964]
[1643334203812,5.41650783,89.877,89.711,46.4964]
[1643334204017,6.0,89.867,89.741,19.05527764]
[1643334204218,1.5045063,89.854,89.678,1.51756882]
[1643334204417,67.29,89.866,89.673,16.9117]
[1643334204418,67.29,89.839,89.68,13.28]
[1643334204618,1.5045063,89.809,89.68,13.28]
[1643334204918,1.5045063,89.804,89.681,34.87625767]
[1643334205141,6.0,89.794,89.681,34.87625767]
[1643334205324,112.2,89.792,89.681,34.87625767]
[1643334205620,6.0,89.782,89.681,34.87625767]
[1643334205821,112.45,89.781,89.682,0.25]
[1643334206021,6.0,89.771,89.682,0.25]
[1643334206225,26.69017749,89.77,89.682,0.25]
[1643334206424,26.94017749,89.77,89.682,0.25]
[1643334206626,6.0,89.76,89.681,34.87625767]
[1643334206825,0.25,89.759,89.681,34.87625767]
[1643334207027,118.45,89.759,89.681,34.87625767]
[1643334207626,6.25,89.759,89.681,34.87625767]
[1643334207828,6.25,89.759,89.682,0.25]
[1643334208128,5.69016458,89.748,89.682,0.25]
[1643334208328,0.25,89.747,89.682,0.25]
[1643334208731,6.0,89.738,89.682,0.25]
[1643334209128,0.25,89.737,89.682,0.25]
[1643334209928,0.25,89.737,89.646,19.57280843]
[1643334209929,112.45,89.737,89.65,13.28]
[1643334210131,6.0,89.727,89.66,6.0]
[1643334210331,0.25,89.726,89.65,5.82156885]
[1643334210530,0.25,89.726,89.628,2.10569746]
[1643334210730,16.7394,89.72,89.582,1.51756882]
[1643334210930,16.7394,89.72,89.583,41.18876456]
[1643334210931,26.69017749,89.719,89.583,41.18876456]
[1643334211130,6.0,89.709,89.583,41.18876456]
[1643334211332,112.45,89.708,89.583,41.18876456]
[1643334211531,6.0,89.698,89.583,41.18876456]
[1643334211931,6.0,89.689,89.583,41.18876456]
[1643334212132,6.0,89.687,89.583,41.18876456]
[1643334212331,16.7503,89.68,89.583,41.18876456]
[1643334212531,6.0,89.67,89.584,0.25]
[1643334212749,0.25,89.669,89.584,2.10569746]
[1643334212950,6.25,89.669,89.584,2.10569746]
[1643334213148,6.25,89.669,89.583,41.18876456]
[1643334214349,6.25,89.669,89.584,0.25]
[1643334214551,5.69016458,89.659,89.584,0.25]
[1643334214756,0.25,89.658,89.584,0.25]
[1643334215152,16.7442,89.7,89.585,2.10569746]
[1643334215351,0.25,89.699,89.586,0.25]
[1643334215551,0.25,89.699,89.6,13.28]
[1643334215752,0.25,89.699,89.601,0.25]
[1643334215952,16.7442,89.7,89.601,39.66952497]
[1643334216154,23.0122,89.725,89.602,112.2]
[1643334216353,23.0122,89.725,89.611,6.0]
[1643334216556,6.0,89.715,89.62,13.28]
[1643334216754,6.0,89.715,89.63,13.28]
[1643334216953,29.92016651,89.739,89.631,43.98628025]
[1643334217153,29.92016651,89.739,89.631,44.23628025]
[1643334217354,6.0,89.729,89.632,2.10569746]
[1643334217855,6.0,89.729,89.633,0.25]
[1643334218255,6.0,89.729,89.634,2.10569746]
[1643334218757,6.0,89.729,89.635,0.25]
[1643334219257,0.25,89.728,89.636,2.10569746]
[1643334219657,0.25,89.728,89.637,0.25]
[1643334219857,0.25,89.728,89.64,13.28]
[1643334220356,0.25,89.747,89.641,2.35569746]
[1643334220757,0.25,89.747,89.642,2.10569746]
[1643334221158,6.0,89.746,89.643,0.25]
[1643334221762,6.0,89.746,89.652,40.69775937]
[1643334221963,74.1152,89.758,89.653,112.2]
[1643334222261,48.3976,89.8,89.653,114.55569746]
[1643334222462,24.8691,89.784,89.663,6.0]
[1643334222662,24.8691,89.784,89.671,112.2]
[1643334222961,30.07879133,89.783,89.672,0.25]
[1643334223161,30.07879133,89.783,89.681,6.0]
[1643334223360,6.0,89.773,89.682,112.45]
[1643334223758,6.0,89.773,89.682,114.55569746]
[1643334223960,0.25,89.772,89.683,2.10569746]
[1643334224160,0.25,89.772,89.682,112.45]
[1643334224161,0.25,89.772,89.682,0.25]
[1643334224560,0.25,89.772,89.672,0.25]
[1643334224761,0.25,89.772,89.585,1.51756882]
[1643334224961,67.29,89.769,89.6,29.8062]
[1643334225160,16.74,89.74,89.608,2.10569746]
[1643334225361,16.49,89.74,89.608,2.10569746]
[1643334225560,6.0,89.73,89.608,2.10569746]
[1643334225762,2.30155074,89.729,89.641,37.38015059]
[1643334226162,6.0,89.719,89.641,37.38015059]
[1643334226363,6.0,89.719,89.642,0.25]
[1643334226966,6.0,89.719,89.641,37.38015059]
[1643334227364,0.25,89.718,89.641,37.38015059]
[1643334228365,112.45,89.718,89.641,37.38015059]
[1643334228567,6.0,89.708,89.605,18.18425597]
[1643334228765,0.25,89.707,89.593,111.9]
[1643334228967,112.45,89.707,89.567,5.82166324]
[1643334229365,6.0,89.697,89.567,5.82166324]
[1643334229568,6.0,89.697,89.568,38.68631906]
[1643334229569,67.29,89.696,89.568,38.68631906]
[1643334229768,13.28,89.69,89.568,38.68631906]
[1643334229965,67.29,89.685,89.547,5.82390474]
[1643334230174,67.29,89.679,89.512,1.51756882]
[1643334230369,67.29,89.679,89.488,47.1207]
[1643334230370,112.2,89.674,89.55,6.0]
[1643334230567,112.2,89.674,89.522,18.18425597]
[1643334230568,6.0,89.664,89.532,6.0]
[1643334230770,0.25,89.663,89.532,6.0]
[1643334230966,2.55155074,89.663,89.533,44.06456812]
[1643334231166,2.55155074,89.663,89.534,112.2]
[1643334231366,6.0,89.653,89.543,6.0]
[1643334231568,6.0,89.65,89.544,6.0]
[1643334231767,131.42150518,89.649,89.544,8.10569746]
[1643334232074,6.0,89.639,89.545,8.10569746]
[1643334232269,6.0,89.639,89.546,0.25]
[1643334232469,6.0,89.639,89.546,38.86117101]
[1643334232667,55.8475,89.66,89.546,36.50547355]
[1643334232872,55.8475,89.66,89.547,0.25]
[1643334233066,55.8475,89.66,89.547,44.93509508]
[1643334233067,6.0,89.65,89.547,44.93509508]
[1643334233568,6.25,89.649,89.547,44.93509508]
[1643334233768,0.25,89.648,89.547,44.93509508]
[1643334234368,16.7543,89.64,89.547,44.93509508]
[1643334234571,6.0,89.63,89.547,44.93509508]
[1643334234769,0.25,89.629,89.547,44.93509508]
[1643334235170,6.25,89.629,89.547,44.93509508]
[1643334236575,18.51874184,89.619,89.547,44.93509508]
[1643334236776,0.25,89.618,89.547,44.93509508]
[1643334236976,6.0,89.609,89.547,44.93509508]
[1643334237378,0.25,89.608,89.547,44.93509508]
[1643334238781,0.25,89.608,89.548,2.09998884]
[1643334239205,0.25,89.608,89.547,44.68509508]
[1643334239808,0.25,89.608,89.512,2.09998884]
[1643334240405,16.7619,89.6,89.512,2.09998884]
[1643334240605,6.0,89.59,89.512,2.09998884]
[1643334240809,0.25,89.589,89.513,45.45506144]
[1643334241005,6.25,89.589,89.513,45.45506144]
[1643334241609,6.25,89.589,89.514,2.09998884]
[1643334241810,16.7569,89.62,89.514,2.34998884]
[1643334242009,6.0,89.61,89.514,2.34998884]
[1643334242209,0.25,89.619,89.515,38.60546239]
[1643334242411,0.25,89.609,89.52,13.28]
[1643334242810,79.0124,89.649,89.521,18.57121758]
[1643334243109,55.8361,89.68,89.528,1.51756882]
[1643334243308,55.8361,89.68,89.54,13.28]
[1643334243511,77.9018,89.7,89.532,112.2]
[1643334243512,77.9018,89.7,89.55,19.28]
[1643334243712,24.15411733,89.683,89.561,46.4196055]
[1643334243912,24.1835,89.699,89.561,46.4196055]
[1643334243913,24.3682,89.679,89.561,46.4196055]
[1643334244113,24.3682,89.679,89.571,6.0]
[1643334244313,78.2338,89.717,89.58,13.28]
[1643334244512,1.5045063,89.73,89.59,6.0]
[1643334244711,146.3913,89.736,89.6,13.28]
[1643334244917,146.3913,89.736,89.601,43.92133977]
[1643334245113,24.0622,89.736,89.611,6.0]
[1643334245313,16.735,89.75,89.62,13.28]
[1643334245514,11.6538533,89.755,89.63,6.0]
[1643334245716,11.6538533,89.755,89.64,13.28]
[1643334245918,126.8549,89.781,89.641,48.87061452]
[1643334245919,20.19140548,89.773,89.641,48.87061452]
[1643334246117,1.5045063,89.793,89.651,6.0]
[1643334246316,24.4443,89.796,89.66,13.28]
[1643334246524,24.4443,89.796,89.67,6.0]
[1643334246728,24.4443,89.796,89.68,13.28]
[1643334247130,1.5045063,89.82,89.69,6.0]
[1643334247331,1.5045063,89.823,89.7,13.28]
[1643334247531,1.5045063,89.837,89.71,6.0]
[1643334247726,1.5045063,89.839,89.72,13.28]
[1643334247926,79.3487,89.85,89.72,13.28]
[1643334247927,6.0,89.827,89.72,13.28]
[1643334248130,31.93664125,89.828,89.721,42.66588815]
[1643334248426,0.25,89.827,89.721,44.76577333]
[1643334248628,6.0,89.818,89.721,44.51577333]
[1643334248828,0.25,89.817,89.722,0.25]
[1643334249026,6.25,89.817,89.722,0.25]
[1643334249426,1.78763251,89.799,89.722,0.25]
[1643334249627,6.0,89.789,89.722,0.25]
[1643334249926,0.25,89.788,89.722,0.25]
[1643334250731,0.25,89.788,89.721,42.41588815]
[1643334250929,2.95669142,89.787,89.688,2.09988518]
[1643334251130,6.0,89.777,89.66,13.28]
[1643334251329,0.25,89.776,89.67,2.09988518]
[1643334251932,29.00321085,89.776,89.671,46.95760978]
[1643334252134,6.0,89.766,89.671,47.20760978]
[1643334252333,0.25,89.765,89.671,47.20760978]
[1643334252534,6.0,89.76,89.671,46.95760978]
[1643334252736,4.97106291,89.759,89.671,46.95760978]
[1643334252938,5.22106291,89.759,89.671,46.95760978]
[1643334253135,6.0,89.749,89.671,46.95760978]
[1643334253336,0.25,89.748,89.671,46.95760978]
[1643334253534,6.25,89.748,89.671,46.95760978]
[1643334253937,6.25,89.748,89.63,16.4678]
[1643334254135,6.25,89.748,89.62,13.28]
[1643334254335,16.7364,89.74,89.63,6.0]
[1643334254535,6.0,89.73,89.63,6.0]
[1643334254735,6.0,89.73,89.631,0.25]
[1643334254936,0.25,89.729,89.631,0.25]
[1643334255139,29.00321085,89.729,89.631,36.89596757]
[1643334255340,29.00321085,89.729,89.632,2.09988518]
[1643334255535,6.0,89.719,89.632,2.09988518]
[1643334255736,6.0,89.719,89.633,0.25]
[1643334256236,6.0,89.719,89.634,2.09988518]
[1643334256637,6.0,89.719,89.635,0.25]
[1643334256937,74.4121,89.782,89.644,6.0]
[1643334257137,74.4121,89.782,89.65,6.0]
[1643334257337,6.0,89.772,89.66,13.28]
[1643334257537,6.0,89.772,89.67,6.0]
[1643334257774,32.39068847,89.771,89.671,0.25]
[1643334258170,0.25,89.77,89.672,2.09988518]
[1643334258370,0.25,89.77,89.681,39.55246206]
[1643334258571,0.25,89.77,89.691,6.0]
[1643334258771,6.0,89.761,89.692,0.25]
[1643334259370,6.0,89.786,89.693,2.09988518]
[1643334259772,32.87927757,89.785,89.694,0.25]
[1643334260170,6.0,89.775,89.694,0.25]
[1643334260372,0.25,89.774,89.691,6.0]
[1643334260574,0.25,89.774,89.694,0.25]
[1643334260772,0.25,89.774,89.7,6.0]
[1643334260973,0.25,89.774,89.701,45.90326418]
[1643334261174,6.0,89.775,89.701,46.15326418]
[1643334261973,6.0,89.775,89.701,45.90326418]
[1643334262373,6.0,89.775,89.702,0.25]
[1643334262574,0.25,89.774,89.702,0.25]
[1643334264676,0.84499619,89.769,89.702,0.25]
[1643334264874,1.09499619,89.769,89.702,0.25]
[1643334265074,0.84499619,89.769,89.702,0.25]
[1643334265275,0.84499619,89.769,89.701,45.90326418]
[1643334265878,113.04499619,89.769,89.701,45.90326418]
[1643334266077,6.0,89.759,89.701,45.90326418]
[1643334266281,0.25,89.758,89.701,45.90326418]
[1643334266677,112.45,89.758,89.701,45.90326418]
[1643334267276,0.25,89.758,89.702,0.25]
[1643334268483,0.25,89.758,89.661,0.25]
[1643334268682,0.25,89.758,89.661,47.93622378]
[1643334268905,6.25,89.758,89.661,47.93622378]
[1643334269081,6.25,89.758,89.671,6.0]
[1643334269280,6.25,89.758,89.672,0.25]
[1643334270882,25.89307959,89.749,89.672,0.25]
[1643334271086,6.0,89.739,89.672,0.25]
[1643334271484,25.89307959,89.749,89.672,0.25]
[1643334271884,1.5045063,89.8,89.68,13.28]
[1643334272083,55.7503,89.82,89.69,6.0]
[1643334272283,55.7503,89.82,89.7,13.28]
[1643334272484,55.7503,89.82,89.701,112.2]
[1643334272683,55.7503,89.82,89.71,6.0]
[1643334272884,32.58035145,89.819,89.713,112.2]
[1643334273084,1.5045063,89.818,89.713,112.2]
[1643334273283,6.0,89.809,89.714,0.25]
[1643334273484,6.0,89.808,89.714,2.34988518]
[1643334273687,0.25,89.808,89.715,2.09988518]
[1643334273883,0.25,89.808,89.716,0.25]
[1643334274289,6.0,89.809,89.717,2.09988518]
[1643334274685,6.0,89.809,89.728,44.12360524]
[1643334274885,1.5045063,89.816,89.729,0.25]
[1643334275087,16.7181,89.83,89.729,2.34988518]
[1643334275088,1.5045063,89.815,89.729,2.34988518]
[1643334275684,0.25,89.814,89.729,0.25]
[1643334276290,16.7216,89.81,89.729,0.25]
[1643334276687,0.25,89.809,89.729,0.25]
[1643334279188,0.25,89.809,89.727,6.0]
[1643334279389,16.7247,89.8,89.71,13.28]
[1643334279589,6.0,89.798,89.698,2.09988518]
[1643334279788,0.25,89.797,89.673,1.51756882]
[1643334279989,6.0,89.79,89.683,6.0]
[1643334280190,1.5045063,89.785,89.667,2.09988518]
[1643334280388,1.39392231,89.784,89.683,40.62662604]
[1643334280588,6.0,89.774,89.683,40.62662604]
[1643334280787,0.25,89.773,89.683,40.62662604]
[1643334281188,112.45,89.773,89.683,40.62662604]
[1643334281391,6.0,89.772,89.683,40.62662604]
[1643334281590,25.66228768,89.762,89.683,40.62662604]
[1643334281790,0.25,89.761,89.683,40.62662604]
[1643334281992,6.0,89.752,89.684,0.25]
[1643334282290,0.25,89.751,89.684,0.25]
[1643334282695,112.45,89.751,89.684,0.25]
[1643334283091,8.06198608,89.74,89.684,0.25]
[1643334283292,112.45,89.739,89.684,0.25]
[1643334283491,6.0,89.729,89.684,0.25]
[1643334283690,6.0,89.729,89.649,2.09988518]
[1643334283691,6.0,89.729,89.663,0.25]
[1643334283916,0.25,89.728,89.65,13.53]
[1643334284491,0.25,89.728,89.65,13.28]
[1643334284693,0.25,89.728,89.645,1.51756882]
[1643334284894,2.95669142,89.727,89.631,1.51756882]
[1643334285092,6.0,89.717,89.624,1.51756882]
[1643334285292,0.25,89.716,89.622,1.51756882]
[1643334285492,25.91228768,89.716,89.622,1.51756882]
[1643334285793,16.7438,89.69,89.619,1.51756882]
[1643334285994,6.0,89.68,89.606,1.51756882]
[1643334286296,0.25,89.679,89.604,1.51756882]
[1643334286698,8.31198608,89.679,89.602,42.90615852]
[1643334286995,6.0,89.669,89.602,42.90615852]
[1643334287394,25.66228768,89.659,89.602,42.90615852]
[1643334287894,0.25,89.658,89.603,0.25]
[1643334288097,6.0,89.649,89.59,5.5]
[1643334288395,0.25,89.648,89.591,0.25]
[1643334288594,16.7443,89.7,89.591,0.25]
[1643334288795,0.25,89.689,89.591,0.25]
[1643334288994,29.62562133,89.689,89.591,47.99007149]
[1643334289393,16.7458,89.68,89.591,47.99007149]
[1643334289896,24.2247,89.713,89.591,47.74007149]
[1643334289897,4.34865243,89.669,89.591,47.74007149]
[1643334290098,6.0,89.659,89.555,1.51756882]
[1643334290300,0.25,89.658,89.55,13.28]
[1643334290599,6.0,89.65,89.55,13.28]
[1643334290795,0.25,89.649,89.55,13.28]
[1643334290998,16.7558,89.63,89.551,47.10058883]
[1643334291196,9.51808587,89.629,89.551,47.10058883]
[1643334291423,6.0,89.62,89.551,47.10058883]
[1643334291623,9.76808587,89.629,89.551,47.10058883]
[1643334291624,6.0,89.619,89.551,47.10058883]
[1643334291827,0.25,89.618,89.551,47.10058883]
[1643334292031,0.25,89.618,89.552,0.25]
[1643334292424,0.25,89.618,89.552,2.35014386]
[1643334293024,6.0,89.619,89.552,2.35014386]
[1643334293325,0.25,89.618,89.552,2.35014386]
[1643334293726,0.25,89.618,89.552,114.55014386]
[1643334294225,16.7477,89.67,89.554,112.2]
[1643334294427,16.7477,89.67,89.562,6.0]
[1643334294625,6.0,89.66,89.57,13.28]
[1643334294825,6.0,89.66,89.58,13.28]
[1643334295026,119.3489063,89.738,89.58,13.28]
[1643334295027,76.5065,89.737,89.59,13.28]
[1643334295226,76.5065,89.737,89.591,112.2]
[1643334295227,16.7387,89.73,89.591,112.2]
[1643334295427,16.7387,89.73,89.601,112.2]
[1643334295628,16.7387,89.73,89.61,13.28]
[1643334295826,16.7387,89.73,89.611,0.25]
[1643334296026,16.7387,89.73,89.62,6.0]
[1643334296027,25.23766943,89.729,89.62,6.0]
[1643334296227,6.0,89.72,89.63,13.28]
[1643334296425,6.0,89.719,89.631,37.35583654]
[1643334296626,6.0,89.719,89.632,112.2]
[1643334296827,6.0,89.719,89.633,0.25]
[1643334297226,0.25,89.718,89.633,0.25]
[1643334298029,0.25,89.718,89.632,0.25]
[1643334298228,25.23766943,89.729,89.634,2.10795165]
[1643334298427,25.23766943,89.729,89.641,6.0]
[1643334298631,16.7334,89.76,89.65,13.28]
[1643334298830,16.7334,89.76,89.651,0.25]
[1643334299028,16.7334,89.76,89.66,6.0]
[1643334299230,6.0,89.75,89.67,13.28]
[1643334299729,32.08237087,89.749,89.671,45.30751924]
[1643334300128,6.0,89.739,89.671,45.30751924]
[1643334300330,6.0,89.739,89.672,0.25]
[1643334301528,0.25,89.738,89.65,13.28]
[1643334301929,3.20669142,89.738,89.611,24.4721]
[1643334302128,6.0,89.728,89.61,13.28]
[1643334302330,1.64190289,89.719,89.606,36.1260734]
[1643334302529,6.0,89.709,89.606,36.1260734]
[1643334302829,0.25,89.708,89.606,36.1260734]
[1643334303038,6.25,89.708,89.607,114.30795165]
[1643334303228,6.25,89.708,89.62,13.28]
[1643334303428,6.25,89.708,89.621,44.87117028]
[1643334303630,6.25,89.708,89.621,45.12117028]
[1643334303831,0.25,89.708,89.621,45.12117028]
[1643334304028,28.19923543,89.697,89.621,45.12117028]
[1643334304229,0.25,89.696,89.621,44.87117028]
[1643334304430,6.0,89.687,89.621,44.87117028]
[1643334304632,6.0,89.687,89.621,44.37117028]
[1643334304831,0.25,89.686,89.589,2.10223983]
[1643334305029,6.0,89.678,89.591,0.25]
[1643334305434,0.25,89.677,89.591,0.25]
[1643334305831,6.27503833,89.677,89.591,0.25]
[1643334306233,6.27503833,89.677,89.589,48.52505232]
[1643334306234,6.27503833,89.677,89.59,0.25]
[1643334306431,6.27503833,89.677,89.592,19.46925073]
[1643334306632,6.27503833,89.677,89.6,13.28]
[1643334306837,6.27503833,89.677,89.601,0.25]
[1643334307436,6.27503833,89.677,89.6,13.28]
[1643334307633,6.0,89.667,89.6,13.28]
[1643334307835,0.25,89.666,89.573,17.3670109]
[1643334308236,0.25,89.666,89.574,0.25]
[1643334309235,112.45,89.666,89.574,0.25]
[1643334309438,24.50389346,89.657,89.572,0.25]
[1643334309637,6.0,89.647,89.572,0.25]
[1643334309838,0.25,89.646,89.572,0.25]
[1643334312041,9.7203803,89.639,89.572,0.25]
[1643334312241,0.25,89.638,89.572,0.25]
[1643334312441,6.0,89.629,89.572,0.25]
[1643334312842,6.0,89.629,89.563,1.51756882]
[1643334312843,0.25,89.628,89.563,1.51756882]
[1643334313039,0.25,89.628,89.539,7.9261443]
[1643334313040,0.25,89.628,89.552,1.51756882]
[1643334313440,0.25,89.628,89.54,13.28]
[1643334313441,6.25,89.628,89.55,1.51756882]
[1643334313640,0.25,89.628,89.54,14.79756882]
[1643334313844,24.50389346,89.617,89.541,40.31400739]
[1643334314042,6.0,89.607,89.551,2.10223983]
[1643334314244,6.0,89.607,89.546,1.51756882]
[1643334314441,6.0,89.607,89.545,1.51756882]